[Event "FIDE Womens Grand Prix-I 2022-23"]
[Site "Nur-Sultan"]
[Date "2022.09.19"]
[Round "2.1"]
[White "Shuvalova, Polina"]
[Black "Paehtz, Elisabeth"]
[Result "1-0"]
[ECO "B83"]
[WhiteElo "2510"]
[BlackElo "2484"]
[Annotator "TA"]
[PlyCount "80"]
[EventDate "2022.09.15"]
[EventType "tourn"]
[EventCountry "KAZ"]
[SourceTitle "playchess.com"]
[Source "ChessBase"]
[SourceQuality "1"]
[TimeControl "40/5400+30:1800+30"]

{[%evp 19,80,3,5,0,-4,-10,0,-12,-3,-20,0,-24,-11,-36,-31,-18,-17,-48,-46,-57,-47,-79,-63,-87,-17,-16,0,0,0,0,0,0,0,0,31,26,58,17,17,18,89,81,125,132,121,100,117,118,178,125,203,98,123,44,73,9,169,156,613,597,589,585,29999]} 1. e4 {[%emt 0:00:03]} c5 {[%emt 0:00:03]} 2. Nf3 {[%emt 0:00:06]} e6 {[%emt 0:00:03]} 3. d4 {[%emt 0:00:08]} cxd4 {[%emt 0:00:04]} 4. Nxd4 {[%emt 0:00:03]} Nc6 {[%emt 0:00:03]} 5. Nc3 {[%emt 0:00:10]} d6 {[%emt 0:00:03]} 6. Be3 {[%emt 0:02:55]} Nf6 {[%emt 0:00:13]} 7. Be2 {[%emt 0:06:19]} Be7 {[%emt 0:00:26]} 8. O-O {[%emt 0:02:32]} O-O {[%emt 0:00:06]} 9. f4 {[%emt 0:00:18]} e5 {[%emt 0:00:04]} 10. Nxc6 {[%emt 0:14:38]} bxc6 {[%emt 0:00:09] RECAPT} 11. Qd2 {[%emt 0:00:09] CPLX 2.3 5 (Kg1-h1) (=5). B83: Sicilian Scheveningen: 6 Be2, lines without ...a6.} exf4 {[%emt 0:07:20]} 12. Rxf4 {[%emt 0:17:06] RECAPT} Be6 {[%emt 0:01:13] [#] CPLX 2.5 10 (Rf8-e8) (=3)} 13. Rff1 $146 {[%emt 0:01:54] CPLX 2.6 12 (b2-b3) (=6). The position is equal.} ({Predecessor:} 13. Bd4 Nd7 14. Rff1 Ne5 15. Rad1 Bg5 16. Be3 Bxe3+ 17. Qxe3 Qc7 18. b3 Rad8 19. Rd2 {0-1 (41) Dzhumaev,M (2487)-Zhou,W (2569) Kuala Lumpur 2010}) 13... Re8 {[%emt 0:13:25] CPLX 2.5 9 (Nf6-g4) (=5)} 14. h3 {[%emt 0:03:34] CPLX 2.5 17 (Be3-d4) (=9)} (14. Bd4 {with more complications.} Ng4 15. b3 Bg5 16. Qd3) 14... Nd7 {[%emt 0:04:11] CPLX 2.5 20 (Ra8-b8) (=8)} 15. Nd1 {[%emt 0:02:14] CPLX 2.5 24 (Ra1-d1) (=12)} Ne5 {[%emt 0:02:19] CPLX 2.6 13 (a7-a5) (=9)} 16. Nf2 {[%emt 0:01:05] CPLX 2.6 25 (Nd1-c3) (=14)} a5 {[%emt 0:24:43][%cal Ba7a5,Ba5a4][%mdl 32] CPLX 2.4 5 (Ne5-c4) (=8)} 17. b3 {[%emt 0:02:54] BESTDEEP} a4 {[%emt 0:00:54] CPLX 2.5} 18. Bd4 {[%emt 0:08:00] MISS-Nf2-d3 31 (Nf2-d3) (=14)} c5 {[%emt 0:09:12] BESTDEEP} 19. Bc3 {[%emt 0:01:40] CPLX 3.0} Bg5 {[%emt 0:01:44] EASY} 20. Qd1 {[%emt 0:03:00] CPLX 3.2 32 (Qd2-e1) (=15)} Qb6 {[%emt 0:04:55] Against Bb5. CPLX 2.7 16 (c5-c4) (=7)} 21. Kh1 {[%emt 0:01:01] CPLX 2.8} Be3 {[%emt 0:06:31] RELBLUND 70 (c5-c4) (=12)} (21... c4 $17 22. Bxe5 dxe5 23. Bxc4 Bxc4 24. bxc4 Rac8) 22. bxa4 $11 {[%emt 0:03:07] BESTDEEP} Bd4 {[%emt 0:10:05] CPLX 3.1 16 (Ne5-c4) (=12)} ({Don't do} 22... Rxa4 23. Rb1 Qa7 24. Bb5 $16) 23. Rb1 {[%emt 0:02:12] CPLX 3.3} Qa7 {[%emt 0:01:06] CPLX 3.7} 24. Bxd4 {[%emt 0:00:16] EASY} cxd4 {[%emt 0:00:03] RECAPT} 25. Bb5 {[%emt 0:06:43] CPLX 2.7} Rec8 {[%emt 0:01:25] CPLX 2.9} 26. Rb4 {[%emt 0:02:18] CPLX 2.7} Bc4 {[%emt 0:02:10] CPLX 2.8 31 (Ne5-c6) (=11)} 27. Nd3 {[%emt 0:02:33] CPLX 3.2} Bxa2 {[%emt 0:02:51] CPLX 3.2 32 (Bc4-e6) (=12)} 28. Rf2 {[%emt 0:03:10] Strongly threatening Nxe5. CPLX 3.0 41 (Qd1-a1) (=10)} Be6 {[%emt 0:02:55] CPLX 3.0 0 (Ne5-c6) (=12)} 29. Rd2 {[%emt 0:01:15] BESTDEEP} Rc3 {[%emt 0:05:09] RELBLUND 71 (Ra8-b8) (=15)} (29... Rab8 $11 {remains equal.}) 30. Nf4 $16 {[%emt 0:03:16] CPLX 3.0} d3 {[%emt 0:00:19] CPLX 3.1 44 (Ne5-c6) (=16)} 31. cxd3 {[%emt 0:01:56] CPLX 3.5} ({Resist} 31. Nxd3 h6 $14) 31... Qe3 {[%emt 0:00:52] CPLX 3.2} 32. Nxe6 {[%emt 0:00:30] CPLX 3.7} fxe6 {[%emt 0:00:30] RECAPT} 33. Rb1 {[%emt 0:02:28] CPLX 2.9} Rf8 {[%emt 0:00:45] CPLX 2.8 60 (g7-g6) (=17)} (33... g6 $16 {was worth a try.} 34. d4 Nf7) 34. Qe1 {[%emt 0:01:05] CPLX 2.7 53 (a4-a5) (=10)} (34. a5 $18) 34... Qf4 {[%emt 0:00:52] CPLX 3.3 78 (Qe3xe1) (=19)} (34... Qxe1+ $16 {was called for.} 35. Rxe1 Rf7) 35. Re2 {[%emt 0:02:43] CPLX 3.2 105 (a4-a5) (=14)} (35. a5 $18) 35... Ra3 {[%emt 0:00:34] [#] CPLX 3.4=>BLUNDERREACT} 36. Qd2 {[%emt 0:01:46] MISSDEEP-a4-a5 79 (a4-a5) (=16)} (36. a5 $1 $16) 36... Qg3 $1 $14 {[%emt 0:00:28][%cal Re5d3] DEEPSTRONG} 37. Re3 {[%emt 0:01:02] MISSDEEP-Rb1-d1 64 (Rb1-d1) (=18)} (37. Rd1 $16) 37... Qf4 $2 {[%emt 0:00:32] [#] RELBLUND 160 (Rf8-f2) (=23)} (37... Rf2 $1 $11 {and Black stays safe.} 38. Rxg3 Rxd2) 38. Rbe1 $1 $18 {[%emt 0:00:24] BESTDEEP} Rf6 $2 {[%emt 0:00:16] MISSDEEP-Rf8-b8 400 (Rf8-b8) (=36)} (38... Rb8 $16 39. Qe2 (39. d4 Rxb5 40. dxe5 Rbb3 $11) 39... Ng6) 39. Qc1 {[%emt 0:01:27] BESTDEEP} Ra2 {[%emt 0:00:31] aiming for ...h5. CPLX 3.5} 40. Qc8+ {[%emt 0:00:16] EASY} Kf7 {[%emt 0:00:00] Weighted Error Value: White=0.17 (very precise) /Black=0.38} 1-0

[Event "FIDE Womens Grand Prix-I 2022-23"]
[Site "Nur-Sultan"]
[Date "2022.09.19"]
[Round "2.2"]
[White "Zhu, Jiner"]
[Black "Wagner, Dinara"]
[Result "1-0"]
[ECO "B55"]
[WhiteElo "2464"]
[BlackElo "2341"]
[Annotator "TA"]
[PlyCount "81"]
[EventDate "2022.09.15"]
[EventType "tourn"]
[EventCountry "KAZ"]
[SourceTitle "playchess.com"]
[Source "ChessBase"]
[SourceQuality "1"]
[TimeControl "40/5400+30:1800+30"]

{[%evp 21,81,31,28,23,33,27,33,24,25,33,41,45,52,58,46,48,75,83,82,72,93,77,79,77,106,100,128,97,92,38,132,131,132,118,171,179,164,160,238,245,234,254,296,288,281,291,284,284,266,264,538,297,286,292,357,333,346,269,377,401,405,391]} 1. e4 {[%emt 0:00:08]} c5 {[%emt 0:00:03]} 2. Nf3 {[%emt 0:00:09]} d6 {[%emt 0:00:05]} 3. d4 {[%emt 0:00:06]} cxd4 {[%emt 0:00:06]} 4. Nxd4 {[%emt 0:00:06]} Nf6 {[%emt 0:00:03]} 5. f3 {[%emt 0:00:11]} e5 {[%emt 0:04:54]} 6. Nb3 {[%emt 0:00:08]} d5 {[%emt 0:00:56]} 7. Bg5 {[%emt 0:00:16]} Be6 {[%emt 0:00:45]} 8. Bxf6 {[%emt 0:00:11]} gxf6 {[%emt 0:00:19]} 9. exd5 {[%emt 0:00:10]} Qxd5 {[%emt 0:00:56]} 10. Qxd5 {[%emt 0:00:10]} Bxd5 {[%emt 0:00:05]} 11. Nc3 {[%emt 0:00:10]} Be6 $1 {[%emt 0:09:40] CPLX 2.3} 12. O-O-O {[%emt 0:00:11][%cal Ba1d1,Bd1d5,Bd5b5,Bb5b4][%mdl 32] BESTDEEP. B55: Sicilian: 2...d6 3 d4 cxd4 4 Nxd4 Nf6 5 f3.} Nd7 {[%emt 0:08:19] CPLX 2.3 10 (Nb8-c6) (=5)} 13. Nb5 $1 {[%emt 0:00:15] DEEPSTRONG} Bh6+ {[%emt 0:03:11] CPLX 2.5} 14. Kb1 {[%emt 0:00:06] EASY. White is slightly better.} Ke7 {[%emt 0:00:50] CPLX 2.6} 15. Nc7 {[%emt 0:00:15] CPLX 3.3} Rac8 {[%emt 0:05:03] CPLX 3.6 8 (Ra8-d8) (=4)} 16. Nd5+ {[%emt 0:00:09] CPLX 3.9} Bxd5 {[%emt 0:04:36] EASY} 17. Rxd5 {[%emt 0:00:09] RECAPT} Nb6 {[%emt 0:02:24] CPLX 2.0 0 (Bh6-e3) (=3)} 18. Rb5 {[%emt 0:06:31] CPLX 2.2} Rc7 {[%emt 0:08:10] CPLX 2.1 27 (Bh6-e3) (=6)} 19. Bd3 {[%emt 0:00:52] [#] CPLX 2.1} Nc8 $146 {[%emt 0:07:42] CPLX 2.1 0 (Bh6-e3) (=5)} ({Predecessor:} 19... Be3 20. Re1 Bf2 21. Re2 a6 22. Rb4 Nd5 23. Rc4 Bg1 24. Rxc7+ Nxc7 25. g3 h5 26. f4 Ne6 27. Nd2 {½-½ (27) Sievers,S (2375)-Wilhelmi,C (2315) Hamburg 1995}) 20. Re1 {[%emt 0:00:31] BESTDEEP} Nd6 {[%emt 0:07:23] CPLX 2.2 21 (Ke7-d8) (=7)} 21. Rb4 {[%emt 0:00:15] CPLX 2.5 16 (Rb5-d5) (=2)} (21. Rd5 {feels hotter.} b6 22. Nd4 Bg5 23. c3) 21... Kf8 {[%emt 0:05:54] CPLX 2.2 2 (Bh6-g7) (=6)} 22. a4 {[%emt 0:09:00] BESTDEEP} Bg5 {[%emt 0:01:58] [#] CPLX 2.1 29 (Kf8-g7) (=8)} 23. g3 $1 {[%emt 0:01:44] DEEPSTRONG} Re7 {[%emt 0:08:41] CPLX 2.2 28 (b7-b6) (=10)} 24. h4 {[%emt 0:08:38] CPLX 2.1 31 (a4-a5) (=4)} Bh6 {[%emt 0:00:28] EASY} 25. Rd1 {[%emt 0:00:11] CPLX 2.0 54 (a4-a5) (=7)} (25. a5 $16) 25... Rd7 {[%emt 0:14:57] [#] White leaves nothing to chance now. RELBLUND 94 (Bh6-e3) (=15)} (25... Be3 $14) 26. Bf5 $1 $36 {[%emt 0:15:58][%mdl 2560] Keeping Black busy. CPLX 2.0} Rd8 {[%emt 0:00:03] EASY} 27. Na5 {[%emt 0:00:59][%cal Bb3a5,Ba5c6,Bc6e7,Be7f5,Bf5d6][%mdl 32] White is much more active. CPLX 2.7 14 (Nb3-c5) (=7)} Ke8 {[%emt 0:02:21] [#] MISSDEEP-Kf8-g7 53 (Kf8-g7) (=16)} (27... Kg7 $16) 28. Rxd6 $1 $18 {[%emt 0:01:26][%mdl 512] BESTDEEP} Rxd6 {[%emt 0:00:05] RECAPT} 29. Rxb7 {[%emt 0:00:05] EASY} a6 {[%emt 0:02:39] [#] CPLX 2.9 78 (Ke8-f8) (=18)} (29... Kf8 $16 {was necessary.}) 30. Nc6 $1 {[%emt 0:04:36][%mdl 1536] White wants to mate with Rb8+. White has strong compensation. CPLX 2.9} Kf8 {[%emt 0:00:39] [#] CPLX 3.3} 31. Ne7 {[%emt 0:00:49] CPLX 2.9} Be3 {[%emt 0:01:56] CPLX 2.8 42 (Rd6-d1) (=19)} 32. Be4 {[%emt 0:00:18] Strongly threatening Nf5. BESTDEEP} Rb6 {[%emt 0:00:34] ...Rxb7 is the strong threat. BESTDEEP} 33. Rc7 {[%emt 0:00:47] And now Nf5 would win. CPLX 3.1} Rb8 {[%emt 0:00:43] BESTDEEP} 34. Nf5 {[%emt 0:01:33] BESTDEEP} Bb6 {[%emt 0:00:27] CPLX 3.3} 35. Rd7 {[%emt 0:00:14] Black must now prevent Bd5. BESTDEEP} Bd4 $2 {[%emt 0:00:23] CPLX 2.8 274 (h7-h5) (=27)} (35... h5 36. Nd6 Bc5 37. Rxf7+ Kg8) 36. b3 {[%emt 0:01:15] MISSDEEP-Be4-d5 241 (Be4-d5) (=14)} (36. Nxd4 exd4 37. Bd5 (37. Rxd4 Ke7 $16) 37... Ke8 38. Rxf7 Rd8 $18) 36... h5 {[%emt 0:00:38] BESTDEEP} 37. Nd6 {[%emt 0:00:14] BESTDEEP} ({Weaker is} 37. Nxd4 exd4 38. Ra7 (38. Rxd4 Ke7 $14) 38... Rg8 $16) 37... Bc5 {[%emt 0:00:31] CPLX 3.1 65 (Rb8-b6) (=27)} 38. Rxf7+ {[%emt 0:01:19] EASY} Kg8 {[%emt 0:00:01] aiming for ...Rb6. LEGAL} 39. Rxf6 {[%emt 0:00:13] Hoping for Nf5. CPLX 3.2 77 (Be4-d5) (=15)} Rd8 {[%emt 0:00:54] CPLX 3.0 108 (Rb8-b6) (=29)} (39... Rb6 $142) 40. Nf5 {[%emt 0:03:55] BESTDEEP} a5 {[%emt 0:00:07] CPLX 2.9 4 (Bc5-f8) (=28)} 41. Bd3 {[%emt 0:32:12] Weighted Error Value: White=0.14 (very precise) /Black=0.35} 1-0

[Event "FIDE Womens Grand Prix-I 2022-23"]
[Site "Nur-Sultan"]
[Date "2022.09.19"]
[Round "2.3"]
[White "Abdumalik, Zhansaya"]
[Black "Tan, Zhongyi"]
[Result "1/2-1/2"]
[ECO "C45"]
[WhiteElo "2495"]
[BlackElo "2525"]
[Annotator "TA"]
[PlyCount "78"]
[EventDate "2022.09.15"]
[EventType "tourn"]
[EventCountry "KAZ"]
[SourceTitle "playchess.com"]
[Source "ChessBase"]
[SourceQuality "1"]
[TimeControl "40/5400+30:1800+30"]

{[%evp 17,78,7,13,-14,-4,-22,-13,-81,-78,-72,-62,-207,-84,-101,-102,-86,-95,-100,-47,-74,-41,-122,0,0,0,0,-6,0,0,-33,-35,-41,-33,-76,-85,-77,-22,-20,-20,-22,0,0,76,68,68,0,0,0,0,0,0,0,0,0,0,0,0,0,0,0,0,0,0]} 1. e4 {[%emt 0:00:04][%cal Be2e4,Be4e5][%mdl 32]} e5 {[%emt 0:00:06]} 2. Nf3 {[%emt 0:00:05]} Nc6 {[%emt 0:00:05]} 3. d4 {[%emt 0:00:05]} exd4 {[%emt 0:00:16]} 4. Nxd4 {[%emt 0:00:07]} Nf6 {[%emt 0:00:08]} 5. Nxc6 {[%emt 0:00:14]} bxc6 {[%emt 0:00:06]} 6. e5 {[%emt 0:00:07]} Qe7 {[%emt 0:00:06]} 7. Qe2 {[%emt 0:00:04]} Nd5 {[%emt 0:00:06]} 8. c4 {[%emt 0:01:30]} Nb6 {[%emt 0:00:09]} 9. Nc3 {[%emt 0:00:22]} a5 {[%emt 0:01:30] CPLX 2.1 6 (Bc8-b7) (=6)} 10. h4 {[%emt 0:06:30] CPLX 2.1 27 (f2-f4) (=27). C45: Scotch Game.} a4 {[%emt 0:04:35] CPLX 2.1 10 (Qe7-e6) (=8)} 11. Bg5 {[%emt 0:09:19] [#] CPLX 2.1 18 (Qe2-e4) (=23)} Qe6 $146 {[%emt 0:00:12] BESTDEEP} ({Predecessor:} 11... Qc5 12. O-O-O Ba6 13. Qg4 h6 14. Be3 Qe7 15. c5 Nc8 16. Qxa4 Bb7 17. Qb4 Ra7 {1-0 (29) Zivic,D (2209)-Starosta,M (2079) Chess.com INT 2020}) 12. Rh3 {[%emt 0:03:28] RELBLUND 68 (0-0-0) (=38)} (12. O-O-O $11) 12... Ba6 $17 {[%emt 0:01:43][%cal Rb6c4] BESTDEEP} 13. b3 {[%emt 0:04:58] EASY} Bb4 {[%emt 0:00:46][%cal Oe6h3] CPLX 2.9 10 (Ba6-c8) (=5)} 14. Re3 {[%emt 0:13:06] RELBLUND 145 (Rh3-g3) (=52)} (14. Rg3 $15) 14... O-O {[%emt 0:00:47] CPLX 3.0 123 (h7-h6) (=25)} (14... h6 $19 15. Bf4 Qf5) 15. Rc1 {[%emt 0:09:29] DEEPSTRONG=>BLUNDERREACT} axb3 {[%emt 0:14:39] CPLX 3.3 0 (h7-h6) (=21)} 16. axb3 {[%emt 0:03:09] RECAPT} Bb7 {[%emt 0:07:36] BESTDEEP} 17. Qc2 {[%emt 0:07:38] CPLX 3.0 5 (Qe2-h5) (=33)} h6 {[%emt 0:17:03] CPLX 3.3 53 (Bb4-c5) (=22)} (17... Bc5 $17 18. Re2 Ba3) 18. Bf4 $15 {[%emt 0:02:24] EASY} Bc5 {[%emt 0:00:09] CPLX 3.2 33 (Rf8-e8) (=24)} 19. Rg3 {[%emt 0:11:41] [#] MISSDEEP-Re3-e2 81 (Re3-e2) (=34)} (19. Re2 $15) 19... Bd4 {[%emt 0:05:44] RELBLUND 122 (d7-d6) (=32)} ({Black should try} 19... d6 $1 $17 {And now ...Nd7 would win.} 20. Be2 dxe5) 20. Qe4 $11 {[%emt 0:03:09] EASY} Bxc3+ {[%emt 0:00:06] EASY} 21. Rgxc3 {[%emt 0:01:45] RECAPT} d5 {[%emt 0:00:18] CPLX 2.9} 22. cxd5 $40 {[%emt 0:06:55][%mdl 128] White is up to no good. CPLX 3.4} Nxd5 {[%emt 0:00:12] RECAPT} (22... cxd5 23. Qd4 $16) 23. Rg3 {[%emt 0:00:52] CPLX 3.8 33 (Rc3-c5) (=27)} (23. Bd3 $2 f5 24. Qd4 Nxc3 25. Qxc3 Ba6 26. Bxa6 Rxa6 $17) 23... Rfe8 {[%emt 0:05:31] CPLX 4.5} 24. Bc4 {[%emt 0:01:33] EASY} Ba6 {[%emt 0:01:06] CPLX 4.6} 25. Bxd5 {[%emt 0:01:22] CPLX 4.7 43 (Bc4xa6) (=26)} cxd5 {[%emt 0:00:08] RECAPT} 26. Qd4 {[%emt 0:00:28] CPLX 4.7} Bb5 {[%emt 0:04:24] RELBLUND 55 (Re8-e7) (=23)} (26... Re7 $17) 27. Rxc7 {[%emt 0:07:32] CPLX 4.1} Ra2 {[%emt 0:00:27] CPLX 4.8} 28. Bd2 $1 {[%emt 0:00:59] DEEPSTRONG} (28. Rc5 $2 Qa6 29. Bd2 Bf1 $19) 28... Qf5 {[%emt 0:05:38] CPLX 5.7 22 (Qe6xe5) (=22)} 29. Re3 {[%emt 0:01:05] BESTDEEP} Rc8 {[%emt 0:18:17] RELBLUND 76 (Re8-e7) (=24)} (29... Re7 $11 {keeps the balance.} 30. Rc5 Qb1+ 31. Rc1 Qg6) 30. Rxc8+ $16 {[%emt 0:00:57] EASY} Qxc8 {[%emt 0:00:06] RECAPT} 31. f3 {[%emt 0:01:57] MISS-e5-e6 68 (e5-e6) (=22)} (31. e6 $1 $14 fxe6 32. Rg3) 31... Qc2 $11 {[%emt 0:07:30] White must now prevent ...Qb1+. EASY. The position is equal.} 32. Qxd5 {[%emt 0:00:26] BESTDEEP} Qb1+ {[%emt 0:05:18] CPLX 5.2} 33. Kf2 {[%emt 0:00:05] aiming for e6. EASY} Qd1 {[%emt 0:00:32] BESTDEEP} ({Don't play} 33... Qf1+ 34. Kg3 Kh7 35. e6 (35. Re1 Qd3 $16) 35... fxe6 36. Qe4+ Kh8 {[#]} 37. Rc3 $1 $18 (37. Re1 Qd3 $16)) 34. Qxb5 {[%emt 0:02:16][%cal Oe5e6] Threatens to win with e6! EASY} Qxd2+ {[%emt 0:00:05] KQR-KQR. EASY} 35. Re2 {[%emt 0:00:11] EASY} Qd4+ {[%emt 0:00:03] EASY} 36. Kf1 {[%emt 0:00:52] BESTDEEP} Qd1+ {[%emt 0:00:51] CPLX 4.8 0 (Ra2-a1) (=18)} 37. Kf2 {[%emt 0:00:14] Strongly threatening Qe8+. EASY} Qd4+ $1 {[%emt 0:00:04] DEEPSTRONG} 38. Kf1 {[%emt 0:00:20] BESTDEEP} Qd1+ {[%emt 0:00:06] CPLX 4.8 0 (Ra2-a1) (=17)} 39. Kf2 {[%emt 0:00:06] EASY} Qd4+ $1 {[%emt 0:00:04] Weighted Error Value: White=0.23 (precise) /Black=0.21 (precise)} 1/2-1/2

[Event "FIDE Womens Grand Prix-I 2022-23"]
[Site "Nur-Sultan"]
[Date "2022.09.19"]
[Round "2.4"]
[White "Kosteniuk, Alexandra"]
[Black "Assaubayeva, Bibisara"]
[Result "0-1"]
[ECO "B92"]
[WhiteElo "2521"]
[BlackElo "2439"]
[Annotator "TA"]
[PlyCount "70"]
[EventDate "2022.09.15"]
[EventType "tourn"]
[EventCountry "KAZ"]
[SourceTitle "playchess.com"]
[Source "ChessBase"]
[SourceQuality "1"]
[TimeControl "40/5400+30:1800+30"]

{[%evp 21,70,0,0,0,22,34,14,22,15,31,22,25,25,15,73,72,69,72,78,86,60,61,59,18,24,23,35,31,40,-11,10,0,0,0,0,0,0,0,0,0,0,-108,-102,-222,-214,-529,-529,-5357,-5293,-29997,-29998]} 1. e4 {[%emt 0:00:03]} c5 {[%emt 0:00:12]} 2. Nf3 {[%emt 0:00:07]} d6 {[%emt 0:00:10]} 3. d4 {[%emt 0:00:05]} cxd4 {[%emt 0:00:07]} 4. Nxd4 {[%emt 0:00:03]} Nf6 {[%emt 0:00:09]} 5. Nc3 {[%emt 0:00:04]} a6 {[%emt 0:00:09]} 6. Be2 {[%emt 0:00:15]} e5 {[%emt 0:00:11]} 7. Nb3 {[%emt 0:00:06]} Be7 {[%emt 0:00:06]} 8. O-O {[%emt 0:00:14]} O-O {[%emt 0:00:07]} 9. Be3 {[%emt 0:00:12]} Be6 {[%emt 0:00:06]} 10. Nd5 {[%emt 0:00:14] 10.Re1 gains popularity.} Nxd5 {[%emt 0:04:08]} 11. exd5 {[%emt 0:00:19]} Bf5 {[%emt 0:00:10] CPLX 2.4} 12. Qd2 {[%emt 0:00:17] BESTDEEP. B92: Sicilian Najdorf: 6 Be2.} a5 {[%emt 0:05:18] CPLX 2.2 22 (Bf5-g6) (=11)} 13. f4 {[%emt 0:00:25] CPLX 2.3} exf4 {[%emt 0:09:30] BESTDEEP} 14. Rxf4 {[%emt 0:00:19] RECAPT. The position is equal.} Bg6 {[%emt 0:19:06] CPLX 2.7} 15. Ra4 {[%emt 0:00:37][%cal Ra4a5] BESTDEEP} Bf6 {[%emt 0:11:08] [#] CPLX 2.3} 16. Rxa5 $146 {[%emt 0:11:31] CPLX 2.4} (16. Nxa5 $2 Qe8 17. Rf4 Rxa5 $1 {[%mdl 512]} 18. Rxf6 gxf6 $19) ({Predecessor:} 16. Bd4 Nd7 17. Rf1 Bxd4+ 18. Nxd4 Nc5 19. Ra3 Ne4 20. Qd1 Qg5 21. Nf3 Qe7 22. c4 {1-0 (45) Kazakos,E (2166)-Giannoulakis,L (2141) Kavala 2015}) 16... Rxa5 {[%emt 0:04:48] RECAPT} 17. Nxa5 {[%emt 0:00:07][%cal Bb3a5,Ba5c4,Bc4d6][%mdl 32] RECAPT} Bxb2 {[%emt 0:10:21] RELBLUND 58 (Rf8-e8) (=11)} (17... Re8 $11 {keeps the balance.}) 18. Rb1 $16 {[%emt 0:00:42] EASY} (18. Nxb7 Qe7 19. Rb1 Qxb7 $15) 18... Qf6 {[%emt 0:01:49] CPLX 2.8} 19. Nc4 {[%emt 0:13:10] CPLX 2.7} (19. Nxb7 Bc3 20. Qd1 Nd7 $11) 19... Bc3 {[%emt 0:01:40] EASY} 20. Bg5 {[%emt 0:01:07] BESTDEEP} Qf5 {[%emt 0:04:34] BESTDEEP} 21. Qxc3 {[%emt 0:07:25] CPLX 3.8} Qxg5 {[%emt 0:00:02] EASY} 22. Bf3 {[%emt 0:01:27] CPLX 2.7 41 (Qc3-d4) (=4)} (22. Nxd6 $2 Qe7 23. Nxb7 Qxe2 $19) 22... Nd7 {[%emt 0:08:24] MISS-Rf8-c8 6 (Rf8-c8) (=7)} 23. Nxd6 {[%emt 0:05:33] EASY} Ne5 {[%emt 0:02:37] CPLX 3.3} 24. Be4 {[%emt 0:11:47] CPLX 3.1 4 (Bf3-e2) (=3)} (24. Rxb7 Nxf3+ 25. Qxf3 Qc1+ 26. Kf2 (26. Qf1 Qxc2 27. Kh1 Qc5 $17) 26... Qxc2+ 27. Kg3 Rd8 $15) 24... Rd8 {[%emt 0:05:58] [#] CPLX 3.3} 25. Bxg6 {[%emt 0:10:51] RELBLUND 51 (Be4-f5) (=7)} (25. Bf5 $1 $14 Ng4 26. Bxg4 (26. Nxb7 $2 Qxf5 27. Rf1 Rc8 $19) 26... Qxg4 27. Qc7 (27. Nxb7 Rxd5 28. h3 Rd1+ 29. Rxd1 Qxd1+ 30. Kf2 h6 $11)) 25... hxg6 {[%emt 0:02:18] RECAPT 21 (Ne5xg6) (=7)} 26. Nxb7 {[%emt 0:15:59] CPLX 3.4 10 (Nd6-e4) (=7)} Rxd5 $40 {[%emt 0:00:40][%mdl 128] Black has some attack. EASY} 27. Qc8+ {[%emt 0:00:12] EASY} Kh7 {[%emt 0:00:04] EASY} 28. Qh3+ {[%emt 0:00:10] CPLX 4.8} Kg8 $1 {[%emt 0:00:10] Hoping for ...Ng4. DEEPSTRONG} 29. Qc8+ {[%emt 0:09:22] BESTDEEP} Kh7 {[%emt 0:00:04] EASY} 30. Qh3+ {[%emt 0:00:04] CPLX 4.8} Kg8 $1 {[%emt 0:00:07] ...Ng4 is the strong threat. DEEPSTRONG} 31. Qg3 {[%emt 0:02:23] RELBLUND 108 (Qh3-c8) (=11)} (31. Qc8+ $11 {remains equal.} Kh7) 31... Qd2 $17 {[%emt 0:03:46][%mdl 1024] Black has strong compensation. CPLX 2.8=>BLUNDERREACT} 32. Qf2 {[%emt 0:05:35] MISSDEEP-h2-h3 120 (h2-h3) (=16)} (32. h3 $17) 32... Qc3 $1 $19 {[%emt 0:02:32] DEEPSTRONG=>BLUNDERREACT} 33. Nd6 $2 {[%emt 0:01:11] [#] CPLX 2.4 315 (a2-a4) (=30)} (33. a4) 33... Ng4 $1 {[%emt 0:02:05] DEEPSTRONG=>BLUNDERREACT} (33... Rxd6 {gets mated.} 34. Rb8+) 34. Ne4 {[%emt 0:00:03] [#] MISS-Qf2xf7 400 (Qf2xf7) (=46)} Qc7 {[%emt 0:00:49] Against Rb8+. BESTDEEP=>BLUNDERREACT} ({Worse is} 34... Qe5 35. Qh4 $11) 35. Qb6 {[%emt 0:03:18] RELBLUND 400 (a2-a4) (=60)} Qxb6+ {[%emt 0:00:08] Weighted Error Value: White=0.72/Black=0.04 (flawless)} 0-1